bitfinex/quotes_SOLUSD_20251201
["timestamp","ask_amount","ask_price","bid_price","bid_amount"]
[1764553775993,24.09978413,128.36,128.33,4.13]
[1764553776170,47.9540111,128.36,128.33,3.46]
[1764553776369,48.6240111,128.36,128.33,3.46]
[1764553776571,20.68661855,128.36,128.33,4.13]
[1764553776790,29.14725391,128.36,128.33,3.46]
[1764553777271,29.14725391,128.36,128.33,4.13]
[1764553777696,29.14725391,128.36,128.33,65.63]
[1764553777896,48.62372633,128.36,128.33,64.96]
[1764553778403,4.37775455,128.34,128.32,3.46]
[1764553778596,12.17016474,128.33,128.32,3.46]
[1764553779192,29.14902874,128.33,128.31,3.46]
[1764553779399,5.04775455,128.32,128.27,66.54775455]
[1764553779698,4.37775455,128.3,128.27,0.67]
[1764553779996,4.37775455,128.28,128.25,0.2]
[1764553780199,4.37775455,128.27,128.25,3.66]
[1764553780495,7.79666302,128.26,128.25,3.66]
[1764553780700,20.67056024,128.26,128.25,0.2]
[1764553781796,45.78936916,128.26,128.25,0.2]
[1764553783398,45.78936916,128.26,128.25,0.2]
[1764553785761,33.58547194,128.26,128.25,0.2]
[1764553786000,45.78936916,128.26,128.25,0.2]
[1764553789508,49.24936916,128.26,128.25,0.2]
[1764553791198,49.24936916,128.26,128.25,1e-08]
[1764553791397,32.94050516,128.26,128.25,1e-08]
[1764553794497,28.52848651,128.26,128.25,1e-08]
[1764553795316,44.16735051,128.26,128.25,1e-08]
[1764553795507,41.37735051,128.26,128.25,1e-08]
[1764553796594,28.52848651,128.26,128.25,1e-08]
[1764553797513,16.308864,128.24,128.23,1e-08]
[1764553797712,27.56074257,128.24,128.23,1e-08]
[1764553797898,28.24074257,128.24,128.23,1e-08]
[1764553799009,28.24074257,128.24,128.21,0.2]
[1764553799010,8.80994492,128.23,128.21,0.2]
[1764553799212,7.79187857,128.22,128.21,0.2]
[1764553799418,16.27097387,128.22,128.21,0.2]
[1764553799609,19.73097387,128.22,128.21,1e-08]
[1764553800206,28.54091879,128.22,128.21,1e-08]
[1764553800407,9.48994492,128.21,128.2,1e-08]
[1764553800624,12.29741054,128.21,128.2,1e-08]
[1764553801121,12.29741054,128.21,128.18,0.1]
[1764553801122,25.11880892,128.19,128.18,1e-08]
[1764553801420,39.18719504,128.19,128.18,1e-08]
[1764553801626,39.86719504,128.19,128.18,1e-08]
[1764553801824,16.308864,128.16,128.15,0.1]
[1764553802030,2.80746562,128.16,128.15,0.1]
[1764553802319,3.48746562,128.16,128.15,0.1]
[1764553802520,19.79632962,128.16,128.15,1e-08]
[1764553802717,28.60627454,128.16,128.15,1e-08]
[1764553803115,23.52727302,128.16,128.15,1e-08]
[1764553803302,20.1001571,128.16,128.15,1e-08]
[1764553803928,16.61269148,128.16,128.15,0.68000001]
[1764553804111,32.92155548,128.16,128.15,0.68000001]
[1764553804316,32.92155548,128.16,128.15,1e-08]
[1764553804530,35.7290211,128.16,128.15,1e-08]
[1764553804707,36.4090211,128.16,128.15,1e-08]
[1764553805210,39.8690211,128.16,128.15,1e-08]
[1764553805829,36.38155548,128.16,128.15,1e-08]
[1764553806032,39.1890211,128.16,128.15,1e-08]
[1764553806209,36.38155548,128.16,128.15,1e-08]
[1764553806606,32.92155548,128.16,128.15,1e-08]
[1764553806913,35.7290211,128.16,128.15,1e-08]
[1764553807114,35.7290211,128.16,128.15,0.68000001]
[1764553807326,7.80274656,128.16,128.15,0.68000001]
[1764553807508,7.80232915,128.17,128.15,3.48746563]
[1764553807904,7.80232915,128.17,128.16,0.68]
[1764553808127,7.80232915,128.17,128.15,0.68000001]
[1764553808312,10.60979477,128.17,128.15,1e-08]
[1764553808624,12.29741054,128.16,128.15,1e-08]
[1764553809406,8.80994492,128.16,128.15,1e-08]
[1764553809607,8.80994492,128.16,128.15,0.68000001]
[1764553810614,7.80274656,128.16,128.15,0.68000001]
[1764553810824,16.61086542,128.19,128.15,3.48746563]
[1764553811022,32.91972942,128.19,128.15,3.48746563]
[1764553811320,55.22949631,128.19,128.16,0.68]
[1764553811627,38.92063231,128.19,128.16,0.68]
[1764553812124,7.8004906,128.2,128.16,3.48746562]
[1764553812426,7.8004906,128.2,128.17,2.80746562]
[1764553812627,19.49686176,128.23,128.19,2.80746562]
[1764553812812,2.80746562,128.25,128.2,2.80746562]
[1764553813011,19.11632962,128.24,128.19,2.80746562]
[1764553813207,19.11632962,128.24,128.19,3.48746562]
[1764553813412,2.80746562,128.24,128.2,0.68]
[1764553814111,2.80746562,128.23,128.2,0.68]
[1764553814431,7.79331304,128.23,128.2,0.68]
[1764553814725,7.79970361,128.21,128.19,0.68]
[1764553814931,7.79970361,128.21,128.2,0.68]
[1764553815628,7.79928007,128.22,128.2,0.68]
[1764553815828,16.308864,128.23,128.21,7.79331304]
[1764553816004,16.60325796,128.22,128.18,0.68]
[1764553816632,16.988864,128.23,128.15,7.80317927]
[1764553816633,7.8009205,128.19,128.17,0.68]
[1764553816829,35.09653481,128.19,128.15,1e-08]
[1764553817011,35.77653481,128.19,128.15,0.68000001]
[1764553817209,16.60325796,128.18,128.15,0.68000001]
[1764553818328,24.10217704,128.17,128.15,1e-08]
[1764553818714,7.80274656,128.16,128.15,1e-08]
[1764553818917,7.80274656,128.16,128.15,0.68000001]
[1764553819405,16.27905228,128.22,128.15,8.47331305]
[1764553819613,16.60325796,128.21,128.16,7.79331304]
[1764553819807,16.60325796,128.21,128.16,0.68]
[1764553820011,24.10217704,128.2,128.17,0.68]
[1764553820538,7.8009205,128.19,128.17,0.68]
[1764553821343,7.8009205,128.19,128.16,0.68]
[1764553825818,7.8009205,128.19,128.16,11.93331304]
[1764553826243,7.8009205,128.19,128.17,0.71]
[1764553827237,28.02322177,128.19,128.15,65.67000001]
[1764553827442,27.30322177,128.19,128.16,0.71]
[1764553827743,7.79331304,128.18,128.15,65.67000001]
[1764553828148,35.81653481,128.19,128.15,65.67000001]
[1764553828319,35.81653481,128.19,128.16,0.71]
[1764553828522,35.09653481,128.19,128.16,0.71]
[1764553828823,7.8009205,128.19,128.17,7.79331304]
[1764553829014,7.8009205,128.19,128.18,0.71]
[1764553829941,7.80031201,128.2,128.18,0.71]
[1764553831639,7.80031201,128.2,128.18,4.17]
[1764553831839,24.1087824,128.21,128.19,0.71]
[1764553832239,7.7999184,128.21,128.19,62.21]
[1764553832739,0.72,128.29,128.2,8.50331304]
[1764553833046,7.79331304,128.26,128.21,11.25331304]
[1764553833259,7.79331304,128.26,128.22,3.46]
[1764553833426,7.79331304,128.26,128.22,4.17]
[1764553833621,8.51331304,128.26,128.23,0.71]
[1764553833847,7.79727095,128.25,128.23,0.71]
[1764553835140,15.59058399,128.25,128.23,0.71]
[1764553835454,7.79727095,128.25,128.23,0.71]
[1764553836141,27.29044833,128.25,128.22,3.46]
[1764553836331,27.29044833,128.25,128.22,4.17]
[1764553836652,27.29044833,128.25,128.22,3.46]
[1764553836960,27.29044833,128.25,128.23,0.71]
[1764553838280,7.79727095,128.25,128.23,0.71]
[1764553838843,7.79727095,128.25,128.22,4.17]
[1764553839743,7.79727095,128.25,128.23,0.71]
[1764553840553,7.79362481,128.31,128.24,2.80437912]
[1764553840753,7.79362481,128.31,128.27,2.80437912]
[1764553840953,27.27768684,128.31,128.27,6.26437912]
[1764553841155,0.72,128.3,128.27,3.46]
[1764553842557,7.79483981,128.29,128.26,3.46]
[1764553842765,7.79483981,128.29,128.26,6.26437912]
[1764553843465,8.51423226,128.3,128.26,6.26437912]
[1764553844771,7.79423226,128.3,128.26,6.26437912]
[1764553844967,8.51423226,128.3,128.26,6.26437912]
[1764553845345,2.80437912,128.28,128.25,3.46]
[1764553845543,12.33432404,128.29,128.25,3.46]
[1764553845742,0.72,128.28,128.25,3.46]
[1764553846243,3.52437912,128.28,128.25,3.46]
[1764553846449,7.79605519,128.27,128.25,3.46]
[1764553848360,0.72,128.26,128.25,3.46]
[1764553848575,0.72,128.26,128.23,3.46]
[1764553849258,8.5065653,128.27,128.23,3.46]
[1764553849670,7.79666302,128.26,128.23,3.46]
[1764553850174,8.51666302,128.26,128.23,3.46]
[1764553850377,0.72,128.25,128.2,15.58642205]
[1764553850577,8.5065653,128.25,128.22,3.46]
[1764553851565,16.30424778,128.25,128.22,3.46]
[1764553852573,8.5065653,128.24,128.2,61.5]
[1764553852870,7.7865653,128.23,128.2,64.96]
[1764553853061,0.72,128.23,128.2,64.96]
[1764553853657,16.30502052,128.24,128.2,64.96]
[1764553853967,0.72,128.23,128.2,64.96]
[1764553854168,0.72,128.23,128.21,3.46]
[1764553854471,8.5065653,128.23,128.21,3.46]
[1764553854657,8.5065653,128.23,128.21,64.96]
[1764553854864,0.72,128.23,128.21,64.96]
[1764553855980,7.7990953,128.22,128.21,64.96]
[1764553857774,8.51871834,128.23,128.21,64.96]
[1764553857959,7.79871834,128.23,128.21,64.96]
[1764553859077,8.46871834,128.23,128.21,64.96]
[1764553859466,7.79871834,128.23,128.21,64.96]
[1764553859671,0.67,128.23,128.21,64.96]
[1764553861676,7.7990953,128.22,128.21,64.96]
[1764553862067,8.4690953,128.22,128.21,61.5]
[1764553862262,20.67943054,128.22,128.21,61.5]
[1764553862791,65.29597772,128.22,128.18,61.5]
[1764553862966,12.21033524,128.19,128.18,64.96]
[1764553863463,12.88033524,128.19,128.18,64.96]
[1764553863663,7.80152909,128.18,128.16,3.46]
[1764553863870,20.68186433,128.18,128.16,3.46]
[1764553864060,8.47152909,128.18,128.16,3.46]
[1764553865777,12.88033524,128.17,128.15,61.50000001]
[1764553865981,12.88033524,128.17,128.15,64.96000001]
[1764553867183,0.67,128.16,128.15,64.96000001]
[1764553867656,12.88033524,128.16,128.15,3.46000001]
[1764553867856,36.9919458,128.16,128.15,3.46000001]
[1764553868072,45.80189072,128.16,128.15,1e-08]
[1764553868475,37.98168564,128.16,128.15,1e-08]
[1764553868864,42.3718158,128.16,128.15,1e-08]
[1764553869073,26.0629518,128.16,128.15,1e-08]
[1764553870072,17.28269148,128.16,128.15,1e-08]
[1764553870380,37.00717471,128.16,128.15,1e-08]
[1764553873584,20.69831071,128.16,128.15,1e-08]
[1764553873881,37.00717471,128.16,128.15,1e-08]
[1764553874185,7.80233515,128.17,128.15,1e-08]
[1764553874768,8.47233515,128.17,128.15,1e-08]
[1764553875185,7.80233515,128.17,128.15,1e-08]
[1764553875688,20.6978993,128.17,128.15,1e-08]
[1764553876389,8.47233515,128.17,128.15,1e-08]
[1764553877187,0.67,128.17,128.15,1e-08]
[1764553877375,20.69772941,128.17,128.15,1e-08]
[1764553877778,3.46,128.2,128.15,1e-08]
[1764553877779,12.22556415,128.2,128.15,1e-08]
[1764553877975,16.978864,128.2,128.15,73.72556416]
[1764553878983,7.79970361,128.21,128.17,12.22556415]
[1764553879299,27.29896263,128.21,128.18,3.46]
[1764553879490,27.96896263,128.21,128.18,3.46]
[1764553880004,20.02526776,128.21,128.17,3.46]
[1764553880305,12.89556415,128.26,128.2,12.22556415]
[1764553880589,12.89556415,128.26,128.16,36.33701725]
[1764553880590,16.308864,128.25,128.21,15.68556415]
[1764553880768,29.20442815,128.25,128.21,3.46]
[1764553880968,16.978864,128.24,128.21,3.46]
[1764553881671,7.79848709,128.23,128.21,3.46]
[1764553883090,8.46848709,128.23,128.21,3.46]
[1764553883694,7.79970361,128.21,128.16,20.02781754]
[1764553883891,20.02526776,128.21,128.17,3.46]
[1764553884091,20.69526776,128.21,128.17,3.46]
[1764553884593,12.89556415,128.2,128.17,3.46]
[1764553884894,12.89556415,128.2,128.16,3.46]
[1764553885500,12.89556415,128.2,128.16,64.96]
[1764553885799,7.8009205,128.19,128.16,64.96]
[1764553886002,20.74648465,128.19,128.16,3.46]
[1764553886300,12.94556415,128.18,128.15,3.46000001]
[1764553886496,12.22556415,128.17,128.15,1e-08]
[1764553886688,12.22556415,128.16,128.15,1e-08]
[1764553886895,12.94556415,128.16,128.15,1e-08]
[1764553887396,21.75550907,128.16,128.15,1e-08]
[1764553887787,29.55825563,128.16,128.15,1e-08]
[1764553895307,16.308864,128.13,128.08,0.1]
[1764553895490,21.03550907,128.09,128.08,0.1]
[1764553896006,45.87138376,128.09,128.08,0.1]
[1764553896584,49.33138376,128.09,128.07,4.56623282]
[1764553896905,38.06437307,128.08,128.03,0.1]
[1764553897087,12.22556415,128.05,128.03,0.1]
[1764553897504,12.94556415,128.05,128.03,0.1]
[1764553898109,20.0356235,128.04,128.03,0.1]
[1764553898500,8.53005935,128.04,128.03,0.1]
[1764553898707,7.81005935,128.04,128.03,0.1]
[1764553898905,8.53005935,128.04,128.03,0.1]
[1764553899208,20.7556235,128.04,128.03,0.1]
[1764553899711,16.308864,128.05,128.03,0.77]
[1764553899896,24.11832548,128.05,128.03,0.1]
[1764553901909,24.11832548,128.05,128.03,0.77]
[1764553902205,20.2413285,128.07,128.03,0.77]
[1764553902206,7.80882311,128.07,128.03,0.77]
[1764553902391,20.03438726,128.07,128.03,0.77]
[1764553902714,20.75438726,128.07,128.03,0.77]
[1764553903209,7.80882311,128.07,128.04,12.22556415]
[1764553903389,7.80785318,128.08,128.04,12.22556415]
[1764553903589,7.80785318,128.08,128.05,0.67]
[1764553904088,20.75341733,128.08,128.03,20.80569246]
[1764553904297,20.75341733,128.08,128.04,4.13]
[1764553904913,20.75341733,128.08,128.04,0.67]
[1764553905111,20.75341733,128.08,128.04,4.13]
[1764553905513,7.80785318,128.08,128.04,3.46]
[1764553905712,7.80785318,128.08,128.05,0.67]
[1764553906491,7.80785318,128.08,128.05,12.89556415]
[1764553906688,24.1161021,128.09,128.05,12.89556415]
[1764553906891,24.1161021,128.09,128.06,0.67]
[1764553907517,7.80623354,128.11,128.07,12.22556415]
[1764553907710,31.7375383,128.13,128.08,3.46]
[1764553907913,28.53442815,128.12,128.08,3.46]
[1764553908115,28.53442815,128.12,128.08,4.13]
[1764553908620,36.3398438,128.12,128.08,4.13]
[1764553908807,37.0598438,128.12,128.08,4.13]
[1764553909219,16.308864,128.08,128.06,3.46]
[1764553909597,16.308864,128.08,128.06,4.13]
[1764553910213,16.308864,128.09,128.07,0.67]
[1764553910411,16.308864,128.09,128.07,12.89556415]
[1764553910901,16.308864,128.09,128.08,0.67]
[1764553911100,7.80609259,128.11,128.08,0.67]
[1764553911322,24.11495659,128.11,128.09,3.46]
[1764553912822,17.028864,128.11,128.09,3.46]
[1764553913039,24.11469256,128.11,128.09,3.46]
[1764553913348,16.308864,128.08,128.07,3.46]
[1764553915011,17.028864,128.08,128.06,3.46]
[1764553915197,29.25442815,128.08,128.06,3.46]
[1764553915604,24.11698057,128.08,128.06,3.46]
[1764553916001,16.308864,128.1,128.07,12.93556415]
[1764553916199,16.308864,128.1,128.08,12.22556415]
[1764553916417,16.308864,128.1,128.08,8.51539973]
[1764553916617,16.308864,128.1,128.09,4.17]
[1764553916815,27.31174404,128.15,128.09,11.97539973]
[1764553917012,7.80457348,128.13,128.1,7.80539973]
[1764553917222,16.308864,128.11,128.1,7.80539973]
[1764553917530,16.308864,128.11,128.1,8.51539973]
[1764553918106,16.308864,128.11,128.1,7.80539973]
[1764553918316,16.308864,128.11,128.1,8.51539973]
[1764553918832,16.308864,128.11,128.1,0.71]
[1764553919325,24.76465589,128.11,128.09,61.5]
[1764553919528,24.11465589,128.11,128.09,64.96]
[1764553920117,24.11465589,128.11,128.09,72.76539973]
[1764553920312,24.76465589,128.11,128.09,64.96]
[1764553920730,0.65,128.1,128.06,69.30539973]
[1764553921025,0.65,128.1,128.07,3.46]
[1764553921712,7.80701069,128.09,128.07,3.46]
[1764553921913,7.80701069,128.09,128.06,70.01539973]
[1764553922110,16.308864,128.07,128.06,61.5]
[1764553922319,16.308864,128.07,128.06,64.96]
[1764553922618,24.11587469,128.09,128.06,64.96]
[1764553922819,24.76587469,128.09,128.06,64.96]
[1764553923239,24.76587469,128.09,128.06,3.46]
[1764553924433,15.60936414,128.14,128.07,0.71]
[1764553924613,0.65,128.13,128.09,7.80539973]
[1764553924936,15.60936414,128.14,128.1,3.46]
[1764553924937,16.308864,128.11,128.1,3.46]
[1764553925519,16.308864,128.11,128.1,4.17]
[1764553925722,7.8047338,128.13,128.1,11.97539973]
[1764553925926,24.1135978,128.13,128.11,0.71]
[1764553926124,24.1135978,128.13,128.1,11.97539973]
[1764553926524,7.80409205,128.14,128.11,8.51539973]
[1764553926832,19.50714731,128.16,128.11,0.71]
[1764553927012,19.50714731,128.16,128.12,0.71]
[1764553927013,44.27141104,128.16,128.12,0.71]
[1764553927211,44.27141104,128.16,128.13,3.46]
[1764553927412,7.80347481,128.15,128.13,3.46]
[1764553927816,11.91539973,128.14,128.07,8.51539973]
[1764553928015,16.308864,128.11,128.07,8.51539973]
[1764553928240,16.308864,128.11,128.08,8.51539973]
[1764553928536,16.308864,128.11,128.09,3.48]
[1764553928739,16.308864,128.11,128.09,4.19]
[1764553929126,24.11520669,128.11,128.09,3.48]
[1764553929826,8.45539973,128.1,128.04,0.71]
[1764553930025,7.80539973,128.09,128.05,3.48]
[1764553930338,8.45539973,128.09,128.05,3.48]
[1764553930726,7.80539973,128.09,128.05,3.48]
[1764553931032,7.80799948,128.08,128.05,4.19]
[1764553931936,7.80539973,128.1,128.05,11.28931484]
[1764553932117,25.76880892,128.11,128.06,8.51539973]
[1764553932316,16.26198857,128.1,128.05,3.48]
[1764553932632,16.26198857,128.1,128.05,11.99926882]
[1764553932844,16.26198857,128.1,128.06,0.71]
[1764553933417,31.92016661,128.11,128.06,16.32402252]
[1764553933619,32.57016661,128.11,128.06,8.51539973]
[1764553933846,32.57016661,128.11,128.07,0.71]
[1764553934032,32.57016661,128.11,128.08,3.48]
[1764553934227,16.26130261,128.11,128.08,3.48]
[1764553935219,15.61130261,128.11,128.08,4.19]
[1764553935657,15.61130261,128.11,128.08,3.48]
[1764553936020,15.61130261,128.11,128.08,4.19]
[1764553936529,15.61130261,128.11,128.08,3.48]
[1764553937642,16.26130261,128.11,128.08,3.48]
[1764553939628,16.308864,128.12,128.09,0.71]
[1764553939844,16.25939746,128.14,128.09,0.71]
[1764553940049,32.56826146,128.14,128.09,8.51539973]
[1764553940345,7.80399773,128.14,128.09,8.51539973]
[1764553940523,7.80399773,128.14,128.1,0.71]
[1764553941017,36.46579825,128.16,128.1,0.71]
[1764553941018,16.308864,128.16,128.1,0.71]
[1764553941218,31.9171333,128.16,128.1,0.71]
[1764553941422,31.9171333,128.16,128.12,7.80518264]
[1764553941641,32.5671333,128.16,128.12,7.80518264]
[1764553941839,0.65,128.15,128.12,3.46]
[1764553942030,31.9171333,128.16,128.12,3.46]
[1764553942219,19.50450236,128.18,128.12,3.46]
[1764553942220,7.80539973,128.17,128.13,0.71]
[1764553942424,16.308864,128.17,128.13,0.71]
[1764553942850,19.11676118,128.17,128.13,0.71]
[1764553943426,19.11676118,128.17,128.13,8.51411602]
[1764553943625,19.76676118,128.17,128.13,8.51411602]
[1764553944442,32.56180036,128.17,128.13,8.51411602]
[1764553944944,0.71,128.16,128.12,7.80495593]
[1764553945151,7.80068477,128.15,128.11,3.46]
[1764553945350,7.80068477,128.14,128.11,3.46]
[1764553945533,7.80068477,128.12,128.08,7.80741637]
[1764553945739,7.80068477,128.12,128.09,3.46]
[1764553945940,8.48068477,128.12,128.09,3.46]
[1764553946131,7.80068477,128.12,128.09,3.46]
[1764553946450,8.48068477,128.12,128.09,3.46]
[1764553946752,8.48068477,128.11,128.09,3.46]
[1764553947051,24.10954877,128.1,128.04,11.97984911]
[1764553947251,7.80068477,128.09,128.04,11.97984911]
[1764553947553,8.48068477,128.09,128.04,11.97984911]
[1764553947942,24.10954877,128.1,128.05,8.51068477]
[1764553948163,16.308864,128.08,128.05,3.46]
[1764553948331,24.10954877,128.08,128.05,3.46]
[1764553949157,32.59741466,128.08,128.05,3.46]
[1764553949546,24.79672989,128.08,128.05,3.46]
[1764553950459,32.59741466,128.08,128.05,3.46]
[1764553951539,31.91741466,128.08,128.05,3.46]
[1764553951745,31.91741466,128.08,128.03,0.1]
[1764553951746,7.80068477,128.06,128.03,3.56]
[1764553952345,8.48068477,128.06,128.03,3.56]
[1764553952653,7.80944943,128.05,128.03,3.56]
[1764553953043,8.48068477,128.06,128.03,3.56]
[1764553953245,8.48068477,128.07,128.03,3.56]
[1764553953442,16.28913245,128.07,128.03,3.56]
[1764553953753,0.68,128.06,128.03,3.56]
[1764553953952,0.68,128.09,128.04,8.51068477]
[1764553954147,24.78954877,128.1,128.04,8.51068477]
[1764553954456,7.80068477,128.09,128.04,8.51068477]
[1764553954641,7.80762023,128.08,128.04,16.32042258]
[1764553954958,16.28791707,128.09,128.05,0.71]
[1764553955258,7.80068477,128.07,128.03,0.1]
[1764553955461,7.80068477,128.07,128.04,3.48]
[1764553955655,8.48068477,128.07,128.04,3.48]
[1764553956465,8.80994492,128.08,128.04,3.48]
[1764553956767,8.48822987,128.07,128.04,3.48]
[1764553958157,16.28891464,128.07,128.04,3.48]
[1764553959259,28.32962146,128.08,128.04,19.80032555]
[1764553959260,16.308864,128.08,128.04,19.80032555]
[1764553959556,16.308864,128.08,128.05,8.51068477]
[1764553960141,16.308864,128.08,128.05,16.31971436]
[1764553960556,32.59727598,128.08,128.05,7.80902959]
[1764553960947,16.308864,128.08,128.05,16.31971436]
[1764553961559,16.988864,128.08,128.05,7.80902959]
[1764553961762,16.308864,128.08,128.05,8.51902959]
[1764553961963,16.988864,128.08,128.05,7.80902959]
[1764553962151,31.91743966,128.08,128.04,15.61062523]
[1764553962356,0.68,128.07,128.05,3.46]
[1764553962558,0.68,128.07,128.04,7.80994046]
[1764553962762,8.48068477,128.07,128.05,3.46]
[1764553962937,8.48068477,128.07,128.04,7.80994046]
[1764553962938,7.80068477,128.06,128.04,3.46]
[1764553963142,0.68,128.06,128.04,3.46]
[1764553964274,16.28966826,128.06,128.04,3.46]
[1764553965658,8.48068477,128.05,128.03,3.56]
[1764553966645,16.29027645,128.05,128.03,0.1]
[1764553967046,16.29027645,128.05,128.03,3.56]
[1764553967461,8.48959168,128.05,128.03,0.1]
[1764553967663,16.29027645,128.05,128.04,3.46]
[1764553968558,16.29027645,128.05,128.03,3.56]
[1764553968865,0.68,128.04,128.03,3.56]
[1764553969071,0.68,128.04,128.03,0.1]
[1764553969475,8.48068477,128.04,128.03,0.1]
[1764553969950,8.49005935,128.04,128.03,0.1]
[1764553970351,7.80970676,128.05,128.03,0.1]
[1764553971073,7.80897553,128.06,128.03,0.1]
[1764553971368,8.48897553,128.06,128.03,0.1]
[1764553972168,8.48068477,128.08,128.03,8.61068477]
[1764553972374,0.68,128.07,128.03,8.61068477]
[1764553972556,0.68,128.07,128.03,7.90068477]
[1764553972756,8.48823697,128.07,128.04,0.71]
[1764553972955,8.48823697,128.07,128.05,3.46]
[1764553973352,7.80823697,128.07,128.04,0.71]
[1764553973676,8.48823697,128.07,128.05,3.46]
[1764553976362,11.32981782,128.08,128.05,3.46]
[1764553976677,8.51765438,128.08,128.05,3.46]
[1764553978573,12.91113368,128.08,128.05,3.46]
[1764553979778,5.1034793,128.07,128.05,3.46]
[1764553980469,12.91187592,128.07,128.05,3.46]
[1764553980790,0.71,128.06,128.05,3.46]
[1764553981080,16.308864,128.06,128.04,3.46]
[1764553981382,8.51839662,128.07,128.04,3.46]
[1764553981771,0.71,128.07,128.04,8.5134793]
[1764553981973,24.11648926,128.08,128.04,8.5134793]
[1764553982183,24.82648926,128.08,128.04,8.5134793]
[1764553982380,24.11648926,128.08,128.04,7.8534793]
[1764553982601,24.11648926,128.08,128.05,0.66]
[1764553983401,0.71,128.09,128.06,7.8088396]
[1764553983699,7.80678237,128.1,128.07,3.46]
[1764553983866,7.80396441,128.14,128.09,4.3934793]
[1764553984191,8.5135461,128.15,128.11,4.3934793]
[1764553984486,12.19825222,128.13,128.11,3.46]
[1764553984875,5.1034793,128.12,128.07,7.80822987]
[1764553985210,27.31620662,128.13,128.08,3.46]
[1764553985488,7.80477292,128.13,128.09,4.3934793]
[1764553985694,8.51477292,128.13,128.09,5.0534793]
[1764553985994,0.71,128.12,128.09,0.66]
[1764553986397,7.80477292,128.13,128.09,12.86020207]
[1764553986602,8.51477292,128.13,128.09,12.86020207]
[1764553987286,0.71,128.12,128.09,7.80672277]
[1764553987899,12.90825222,128.13,128.09,8.46672277]
[1764553988496,7.80396441,128.14,128.1,0.66]
[1764553988795,8.51396441,128.14,128.11,3.46]
[1764553988994,24.11238421,128.15,128.11,3.46]
[1764553989172,24.11238421,128.15,128.09,27.3242495]
[1764553989173,0.71,128.14,128.12,3.46]
[1764553990587,8.51435695,128.14,128.12,3.46]
[1764553991487,0.71,128.13,128.09,12.20037769]
[1764553991693,0.71,128.13,128.11,3.46]
[1764553992279,4.3934793,128.12,128.1,3.46]
[1764553992497,5.1034793,128.13,128.1,3.46]
[1764553992782,0.71,128.13,128.1,3.46]
[1764553992988,8.51458163,128.13,128.1,3.46]
[1764553993388,24.82235171,128.15,128.11,0.66]
[1764553993591,0.71,128.14,128.1,16.31970706]
[1764553994497,8.51411922,128.14,128.1,15.65970706]
[1764553994705,7.80411922,128.14,128.11,0.66]
[1764553996408,8.51411922,128.14,128.1,16.31970706]
[1764553997007,0.71,128.14,128.1,16.31970706]
[1764553997717,8.51425787,128.14,128.1,16.31970706]
[1764553998211,0.71,128.14,128.11,4.3934793]
[1764553998418,0.71,128.14,128.1,16.31970706]
[1764553999213,0.71,128.14,128.1,15.65970706]
[1764553999807,0.71,128.14,128.1,16.31970706]
[1764553999997,0.71,128.14,128.11,3.46]
[1764554000386,8.51445584,128.14,128.11,3.46]
[1764554000903,0.71,128.13,128.11,3.46]
[1764554002321,4.3934793,128.12,128.09,3.46]
[1764554002509,4.3934793,128.11,128.09,3.46]
[1764554002821,0.71,128.11,128.09,3.46]
[1764554003122,0.71,128.1,128.09,3.46]
[1764554008008,8.48579189,128.11,128.09,3.46]
[1764554008927,12.87927119,128.11,128.09,3.46]
[1764554009109,0.68,128.1,128.09,3.46]
[1764554009426,12.19927119,128.11,128.09,3.46]
[1764554009593,5.0734793,128.1,128.05,27.33130237]
[1764554009796,0.68,128.1,128.06,3.46]
[1764554010018,12.19927119,128.11,128.06,8.5334793]
[1764554010198,0.68,128.1,128.06,8.5334793]
[1764554010725,0.68,128.11,128.07,12.88151519]